[Event "Titled Tuesday Blitz February 22 Early 2022"]
[White "Mena, Ailen Oriana"]
[Black "Tillis., Bryan"]
[WhiteFideId "3902773"]
[BlackFideId "2059053"]
[WhiteElo "1534"]
[BlackElo "2273"]
[Result "0-1"]
[Round "06"]
[TimeControl "180+1"]
[Date "2022.02.22"]
[WhiteClock "0:00:02"]
[BlackClock "0:00:06"]

1. e4 {[%clk 0:03:00]}  Nf6 {[%clk 0:02:59]} 2. e5 {[%clk 0:02:59]}  Nd5 {[%clk 0:02:59]} 3. d4 {[%clk 0:02:25]}  d6 {[%clk 0:02:59]} 4. Nf3 {[%clk 0:02:16]}  dxe5 {[%clk 0:02:58]} 5. Nxe5 {[%clk 0:02:07]}  c6 {[%clk 0:02:58]} 6. Bd3 {[%clk 0:01:57]}  Nd7 {[%clk 0:02:55]} 7. Qh5 {[%clk 0:01:28]}  Nxe5 {[%clk 0:02:39]} 8. Qxe5 {[%clk 0:01:28]}  Qd6 {[%clk 0:02:28]} 9. Qxd6 {[%clk 0:01:23]}  exd6 {[%clk 0:02:29]} 10. O-O {[%clk 0:01:23]}  Be7 {[%clk 0:02:19]} 11. a3 {[%clk 0:01:23]}  O-O {[%clk 0:02:14]} 12. Re1 {[%clk 0:01:23]}  Bf6 {[%clk 0:02:10]} 13. c4 {[%clk 0:01:22]}  Nc7 {[%clk 0:02:09]} 14. Bf4 {[%clk 0:01:05]}  Ne8 {[%clk 0:01:30]} 15. Be3 {[%clk 0:00:58]}  Bg4 {[%clk 0:01:20]} 16. Nc3 {[%clk 0:00:56]}  Bh5 {[%clk 0:00:58]} 17. Ne4 {[%clk 0:00:51]}  Be7 {[%clk 0:00:48]} 18. Bf4 {[%clk 0:00:44]}  Bg6 {[%clk 0:00:39]} 19. Rad1 {[%clk 0:00:42]}  Rd8 {[%clk 0:00:35]} 20. Nc3 {[%clk 0:00:36]}  Bxd3 {[%clk 0:00:31]} 21. Rxd3 {[%clk 0:00:37]}  Bf6 {[%clk 0:00:29]} 22. Ne4 {[%clk 0:00:32]}  Rd7 {[%clk 0:00:22]} 23. b4 {[%clk 0:00:24]}  b6 {[%clk 0:00:16]} 24. d5 {[%clk 0:00:23]}  c5 {[%clk 0:00:14]} 25. b5 {[%clk 0:00:21]}  Bd4 {[%clk 0:00:12]} 26. a4 {[%clk 0:00:19]}  f5 {[%clk 0:00:10]} 27. Ng5 {[%clk 0:00:17]}  Nc7 {[%clk 0:00:10]} 28. Ne6 {[%clk 0:00:16]}  Rff7 {[%clk 0:00:05]} 29. Nxc7 {[%clk 0:00:14]}  Rxc7 {[%clk 0:00:06]} 30. Bxd6 {[%clk 0:00:14]}  Rc8 {[%clk 0:00:05]} 31. Bf4 {[%clk 0:00:11]}  h6 {[%clk 0:00:05]} 32. Be5 {[%clk 0:00:09]}  Re8 {[%clk 0:00:03]} 33. Rxd4 {[%clk 0:00:04]}  cxd4 {[%clk 0:00:03]} 34. f4 {[%clk 0:00:04]}  Rd7 {[%clk 0:00:03]} 35. Rd1 {[%clk 0:00:03]}  Rc8 {[%clk 0:00:04]} 36. Rxd4 {[%clk 0:00:03]}  Kf7 {[%clk 0:00:04]} 37. Kf2 {[%clk 0:00:02]}  g5 {[%clk 0:00:05]} 38. Ke3 {[%clk 0:00:02]}  Kg6 {[%clk 0:00:05]} 39. g3 {[%clk 0:00:02]}  h5 {[%clk 0:00:05]} 40. h3 {[%clk 0:00:02]}  h4 {[%clk 0:00:06]} 41. fxg5 {[%clk 0:00:02]}  hxg3 {[%clk 0:00:06]} 42. Bxg3 {[%clk 0:00:03]}  Re8+ {[%clk 0:00:06]} 43. Kf3 {[%clk 0:00:02]}  Kxg5 {[%clk 0:00:06]} 0-1


[Site "https://www.chess.com"]

[Event "Titled Tuesday Blitz February 22 Early 2022"]
[White "Mohammad Fahad, Rahman"]
[Black "Jumabayev, Rinat"]
[WhiteFideId "10207791"]
[BlackFideId "13702661"]
[WhiteElo "2323"]
[BlackElo "2561"]
[Result "1-0"]
[Round "06"]
[TimeControl "180+1"]
[Date "2022.02.22"]
[WhiteClock "0:00:12"]
[BlackClock "0:00:02"]

1. d4 {[%clk 0:03:00]}  Nf6 {[%clk 0:02:59]} 2. c4 {[%clk 0:03:00]}  e6 {[%clk 0:02:59]} 3. Nf3 {[%clk 0:03:01]}  Bb4+ {[%clk 0:02:59]} 4. Bd2 {[%clk 0:03:01]}  a5 {[%clk 0:02:59]} 5. a3 {[%clk 0:03:01]}  Be7 {[%clk 0:02:58]} 6. Nc3 {[%clk 0:02:58]}  d5 {[%clk 0:02:59]} 7. Bf4 {[%clk 0:02:56]}  c6 {[%clk 0:02:44]} 8. e3 {[%clk 0:02:54]}  O-O {[%clk 0:02:43]} 9. h3 {[%clk 0:02:49]}  Nbd7 {[%clk 0:02:40]} 10. Qc2 {[%clk 0:02:47]}  dxc4 {[%clk 0:02:19]} 11. Bxc4 {[%clk 0:02:45]}  b5 {[%clk 0:02:20]} 12. Bd3 {[%clk 0:02:45]}  Bb7 {[%clk 0:02:15]} 13. O-O {[%clk 0:02:38]}  b4 {[%clk 0:02:11]} 14. Na4 {[%clk 0:02:32]}  c5 {[%clk 0:01:47]} 15. Ng5 {[%clk 0:02:08]}  h6 {[%clk 0:01:27]} 16. Nh7 {[%clk 0:02:08]}  Nxh7 {[%clk 0:01:13]} 17. Bxh7+ {[%clk 0:02:09]}  Kh8 {[%clk 0:01:14]} 18. dxc5 {[%clk 0:02:09]}  e5 {[%clk 0:00:53]} 19. Bg3 {[%clk 0:02:00]}  g6 {[%clk 0:00:49]} 20. Bxg6 {[%clk 0:01:38]}  fxg6 {[%clk 0:00:50]} 21. Qxg6 {[%clk 0:01:38]}  Rf6 {[%clk 0:00:37]} 22. Qg4 {[%clk 0:01:36]}  Qc7 {[%clk 0:00:29]} 23. Rad1 {[%clk 0:01:22]}  Bc6 {[%clk 0:00:27]} 24. Nb6 {[%clk 0:01:19]}  Nxb6 {[%clk 0:00:18]} 25. cxb6 {[%clk 0:01:20]}  Qxb6 {[%clk 0:00:19]} 26. Bxe5 {[%clk 0:01:19]}  Rg8 {[%clk 0:00:19]} 27. Bxf6+ {[%clk 0:00:45]}  Bxf6 {[%clk 0:00:18]} 28. Qe6 {[%clk 0:00:46]}  Rxg2+ {[%clk 0:00:17]} 29. Kh1 {[%clk 0:00:47]}  Rg6+ {[%clk 0:00:08]} 30. e4 {[%clk 0:00:42]}  Qc5 {[%clk 0:00:07]} 31. Rg1 {[%clk 0:00:16]}  Rxg1+ {[%clk 0:00:03]} 32. Rxg1 {[%clk 0:00:17]}  Bg7 {[%clk 0:00:02]} 33. Qc8+ {[%clk 0:00:11]}  Kh7 {[%clk 0:00:02]} 34. Qg4 {[%clk 0:00:12]} 1-0


[Site "https://www.chess.com"]

[Event "Titled Tuesday Blitz February 22 Early 2022"]
[White "Moroni, Luca Jr"]
[Black "Aradhya, Garg"]
[WhiteFideId "865834"]
[BlackFideId "25006746"]
[WhiteElo "2573"]
[BlackElo "2169"]
[Result "0-1"]
[Round "06"]
[TimeControl "180+1"]
[Date "2022.02.22"]
[WhiteClock "0:00:06"]
[BlackClock "0:00:10"]

1. d4 {[%clk 0:03:00]}  d5 {[%clk 0:02:53]} 2. Bf4 {[%clk 0:03:00]}  c5 {[%clk 0:02:52]} 3. e3 {[%clk 0:03:00]}  Nc6 {[%clk 0:02:52]} 4. Nf3 {[%clk 0:03:00]}  Nf6 {[%clk 0:02:52]} 5. Nbd2 {[%clk 0:03:00]}  Qb6 {[%clk 0:02:51]} 6. dxc5 {[%clk 0:02:59]}  Qxb2 {[%clk 0:02:51]} 7. Rb1 {[%clk 0:02:59]}  Qc3 {[%clk 0:02:51]} 8. Bb5 {[%clk 0:02:59]}  g6 {[%clk 0:02:51]} 9. O-O {[%clk 0:02:50]}  Bg7 {[%clk 0:02:51]} 10. Nb3 {[%clk 0:02:42]}  O-O {[%clk 0:02:25]} 11. Nfd4 {[%clk 0:01:48]}  e5 {[%clk 0:01:50]} 12. Bxc6 {[%clk 0:01:12]}  exf4 {[%clk 0:01:41]} 13. Ne2 {[%clk 0:00:59]}  Qc4 {[%clk 0:01:31]} 14. Na5 {[%clk 0:00:53]}  Qxc5 {[%clk 0:01:31]} 15. Bxb7 {[%clk 0:00:52]}  Bxb7 {[%clk 0:01:18]} 16. Nxb7 {[%clk 0:00:53]}  Qc7 {[%clk 0:01:18]} 17. Nxf4 {[%clk 0:00:48]}  Rab8 {[%clk 0:00:32]} 18. Nxd5 {[%clk 0:00:47]}  Nxd5 {[%clk 0:00:32]} 19. Qxd5 {[%clk 0:00:48]}  Qxc2 {[%clk 0:00:32]} 20. Rfc1 {[%clk 0:00:35]}  Qa4 {[%clk 0:00:28]} 21. g3 {[%clk 0:00:30]}  h5 {[%clk 0:00:20]} 22. Nd6 {[%clk 0:00:28]}  Rbd8 {[%clk 0:00:17]} 23. Rd1 {[%clk 0:00:21]}  Qa6 {[%clk 0:00:13]} 24. h4 {[%clk 0:00:16]}  Rd7 {[%clk 0:00:13]} 25. Rbc1 {[%clk 0:00:09]}  Rfd8 {[%clk 0:00:10]} 26. Rc6 {[%clk 0:00:09]}  Qa3 {[%clk 0:00:10]} 27. Kg2 {[%clk 0:00:04]}  Bf8 {[%clk 0:00:09]} 28. Nc4 {[%clk 0:00:03]}  Rxd5 {[%clk 0:00:09]} 29. Rxd5 {[%clk 0:00:04]}  Rxd5 {[%clk 0:00:07]} 30. Nxa3 {[%clk 0:00:04]}  Bxa3 {[%clk 0:00:08]} 31. Ra6 {[%clk 0:00:04]}  Bc5 {[%clk 0:00:08]} 32. Ra5 {[%clk 0:00:05]}  Re5 {[%clk 0:00:05]} 33. f4 {[%clk 0:00:04]}  Rd5 {[%clk 0:00:06]} 34. Kh3 {[%clk 0:00:03]}  f5 {[%clk 0:00:06]} 35. a4 {[%clk 0:00:01]}  Kf7 {[%clk 0:00:06]} 36. Rb5 {[%clk 0:00:02]}  Ke6 {[%clk 0:00:06]} 37. a5 {[%clk 0:00:02]}  Bxe3 {[%clk 0:00:07]} 38. Rb7 {[%clk 0:00:02]}  Rxa5 {[%clk 0:00:06]} 39. Rg7 {[%clk 0:00:02]}  Kf6 {[%clk 0:00:06]} 40. Rb7 {[%clk 0:00:03]}  Bg1 {[%clk 0:00:07]} 41. Rb8 {[%clk 0:00:03]}  Ra2 {[%clk 0:00:05]} 42. g4 {[%clk 0:00:04]}  hxg4+ {[%clk 0:00:05]} 43. Kg3 {[%clk 0:00:05]}  Bf2+ {[%clk 0:00:05]} 44. Kg2 {[%clk 0:00:05]}  Bxh4+ {[%clk 0:00:06]} 45. Kf1 {[%clk 0:00:06]}  Bg3 {[%clk 0:00:07]} 46. Rf8+ {[%clk 0:00:05]}  Kg7 {[%clk 0:00:07]} 47. Rb8 {[%clk 0:00:06]}  Bxf4 {[%clk 0:00:08]} 48. Rb7+ {[%clk 0:00:07]}  Kf6 {[%clk 0:00:08]} 49. Rb4 {[%clk 0:00:08]}  Kg5 {[%clk 0:00:08]} 50. Rb7 {[%clk 0:00:08]}  g3 {[%clk 0:00:09]} 51. Re7 {[%clk 0:00:08]}  Kg4 {[%clk 0:00:09]} 52. Kg1 {[%clk 0:00:08]}  g2 {[%clk 0:00:09]} 53. Re1 {[%clk 0:00:08]}  Kf3 {[%clk 0:00:10]} 54. Rb1 {[%clk 0:00:06]}  Be3+ {[%clk 0:00:10]} 55. Kh2 {[%clk 0:00:06]}  g1=Q+ {[%clk 0:00:10]} 0-1


[Site "https://www.chess.com"]

[Event "Titled Tuesday Blitz February 22 Early 2022"]
[White "Murzin, Volodar"]
[Black "Barp, Alberto"]
[WhiteFideId "44155573"]
[BlackFideId "872555"]
[WhiteElo "2585"]
[BlackElo "2229"]
[Result "1-0"]
[Round "06"]
[TimeControl "180+1"]
[Date "2022.02.22"]
[WhiteClock "0:00:03"]
[BlackClock "0:00:07"]

1. Nf3 {[%clk 0:03:00]}  d5 {[%clk 0:02:59]} 2. e3 {[%clk 0:02:55]}  Nf6 {[%clk 0:02:59]} 3. c4 {[%clk 0:02:55]}  e6 {[%clk 0:02:59]} 4. Nc3 {[%clk 0:02:55]}  Nbd7 {[%clk 0:02:51]} 5. Be2 {[%clk 0:02:46]}  Bd6 {[%clk 0:02:49]} 6. O-O {[%clk 0:02:46]}  O-O {[%clk 0:02:49]} 7. Qc2 {[%clk 0:02:46]}  a6 {[%clk 0:02:46]} 8. b3 {[%clk 0:02:46]}  b6 {[%clk 0:02:45]} 9. Bb2 {[%clk 0:02:45]}  Bb7 {[%clk 0:02:45]} 10. Rac1 {[%clk 0:02:43]}  c5 {[%clk 0:02:44]} 11. cxd5 {[%clk 0:02:41]}  exd5 {[%clk 0:02:45]} 12. d4 {[%clk 0:02:41]}  Rc8 {[%clk 0:02:43]} 13. Qb1 {[%clk 0:02:41]}  Re8 {[%clk 0:02:41]} 14. Rfd1 {[%clk 0:02:41]}  Qe7 {[%clk 0:02:34]} 15. a4 {[%clk 0:01:19]}  cxd4 {[%clk 0:02:23]} 16. Nxd4 {[%clk 0:01:16]}  Qe5 {[%clk 0:02:20]} 17. Nf3 {[%clk 0:01:13]}  Qh5 {[%clk 0:02:19]} 18. h3 {[%clk 0:01:09]}  Bb8 {[%clk 0:02:09]} 19. Rd4 {[%clk 0:00:51]}  Nc5 {[%clk 0:01:59]} 20. Rcd1 {[%clk 0:00:22]}  Nxb3 {[%clk 0:01:54]} 21. Rh4 {[%clk 0:00:22]}  Qg6 {[%clk 0:01:50]} 22. Bd3 {[%clk 0:00:22]}  Ne4 {[%clk 0:01:45]} 23. Rg4 {[%clk 0:00:22]}  Nxc3 {[%clk 0:01:26]} 24. Bxc3 {[%clk 0:00:18]}  Qxg4 {[%clk 0:01:26]} 25. hxg4 {[%clk 0:00:14]}  Rxc3 {[%clk 0:01:26]} 26. Bxh7+ {[%clk 0:00:14]}  Kf8 {[%clk 0:01:25]} 27. Bc2 {[%clk 0:00:15]}  Nc5 {[%clk 0:01:24]} 28. Nd4 {[%clk 0:00:15]}  Bc7 {[%clk 0:01:21]} 29. g5 {[%clk 0:00:10]}  Rd8 {[%clk 0:01:19]} 30. g6 {[%clk 0:00:10]}  Rd6 {[%clk 0:01:14]} 31. gxf7 {[%clk 0:00:10]}  Kxf7 {[%clk 0:01:12]} 32. Bf5 {[%clk 0:00:09]}  g6 {[%clk 0:01:08]} 33. Bg4 {[%clk 0:00:07]}  Rc4 {[%clk 0:01:08]} 34. a5 {[%clk 0:00:05]}  b5 {[%clk 0:01:08]} 35. Be2 {[%clk 0:00:05]}  Ne4 {[%clk 0:01:00]} 36. Bxc4 {[%clk 0:00:04]}  dxc4 {[%clk 0:01:01]} 37. Qc1 {[%clk 0:00:03]}  Bxa5 {[%clk 0:00:59]} 38. Qa1 {[%clk 0:00:02]}  Bb4 {[%clk 0:00:55]} 39. f3 {[%clk 0:00:01]}  Nc3 {[%clk 0:00:53]} 40. Re1 {[%clk 0:00:02]}  Nd5 {[%clk 0:00:51]} 41. Re2 {[%clk 0:00:02]}  Bc5 {[%clk 0:00:50]} 42. Kh1 {[%clk 0:00:01]}  Nxe3 {[%clk 0:00:45]} 43. Rxe3 {[%clk 0:00:01]}  Rxd4 {[%clk 0:00:38]} 44. Re4 {[%clk 0:00:01]}  Bxe4 {[%clk 0:00:36]} 45. fxe4 {[%clk 0:00:02]}  Rxe4 {[%clk 0:00:33]} 46. g3 {[%clk 0:00:02]}  Re6 {[%clk 0:00:27]} 47. Kg2 {[%clk 0:00:03]}  Bf8 {[%clk 0:00:20]} 48. Qf1+ {[%clk 0:00:02]}  Rf6 {[%clk 0:00:20]} 49. Qd1 {[%clk 0:00:03]}  Rd6 {[%clk 0:00:19]} 50. Qf3+ {[%clk 0:00:03]}  Kg8 {[%clk 0:00:18]} 51. Kh3 {[%clk 0:00:02]}  b4 {[%clk 0:00:18]} 52. Qe4 {[%clk 0:00:02]}  c3 {[%clk 0:00:15]} 53. Qxb4 {[%clk 0:00:02]}  Rc6 {[%clk 0:00:12]} 54. Qb3+ {[%clk 0:00:02]}  Kg7 {[%clk 0:00:09]} 55. Qb7+ {[%clk 0:00:02]}  Kh6 {[%clk 0:00:07]} 56. Qxc6 {[%clk 0:00:03]} 1-0


[Site "https://www.chess.com"]

[Event "Titled Tuesday Blitz February 22 Early 2022"]
[White "Namitbir Singh Walia"]
[Black "Kadam, Om Manish"]
[WhiteFideId "35071068"]
[BlackFideId "45076294"]
[WhiteElo "1479"]
[BlackElo "1729"]
[Result "0-1"]
[Round "06"]
[TimeControl "180+1"]
[Date "2022.02.22"]
[WhiteClock "0:00:53"]
[BlackClock "0:01:49"]

1. d4 {[%clk 0:03:00]}  Nf6 {[%clk 0:02:59]} 2. c4 {[%clk 0:03:01]}  e6 {[%clk 0:02:58]} 3. Nf3 {[%clk 0:03:00]}  d5 {[%clk 0:02:59]} 4. g3 {[%clk 0:03:00]}  Be7 {[%clk 0:02:59]} 5. Bg2 {[%clk 0:03:00]}  O-O {[%clk 0:02:59]} 6. O-O {[%clk 0:03:01]}  dxc4 {[%clk 0:02:55]} 7. Qc2 {[%clk 0:03:01]}  a6 {[%clk 0:02:55]} 8. Qxc4 {[%clk 0:02:58]}  b5 {[%clk 0:02:55]} 9. Qc2 {[%clk 0:02:57]}  Bb7 {[%clk 0:02:56]} 10. Bg5 {[%clk 0:02:47]}  Nbd7 {[%clk 0:02:55]} 11. Nbd2 {[%clk 0:02:44]}  h6 {[%clk 0:02:53]} 12. Bf4 {[%clk 0:02:41]}  Nd5 {[%clk 0:02:52]} 13. Ne5 {[%clk 0:02:26]}  c5 {[%clk 0:02:35]} 14. Nxd7 {[%clk 0:02:16]}  Qxd7 {[%clk 0:02:34]} 15. dxc5 {[%clk 0:02:05]}  Nxf4 {[%clk 0:02:32]} 16. c6 {[%clk 0:02:00]}  Nxe2+ {[%clk 0:02:17]} 17. Kh1 {[%clk 0:02:00]}  Nd4 {[%clk 0:02:16]} 18. cxb7 {[%clk 0:01:47]}  Nxc2 {[%clk 0:02:15]} 19. bxa8=Q {[%clk 0:01:42]}  Rxa8 {[%clk 0:02:14]} 20. Rac1 {[%clk 0:01:39]}  Rc8 {[%clk 0:02:04]} 21. Nb3 {[%clk 0:01:39]}  Nb4 {[%clk 0:02:01]} 22. Rcd1 {[%clk 0:01:37]}  Qc7 {[%clk 0:01:59]} 23. a3 {[%clk 0:01:33]}  Nd5 {[%clk 0:01:56]} 24. Nd4 {[%clk 0:01:30]}  Bf6 {[%clk 0:01:54]} 25. Bh3 {[%clk 0:01:10]}  Bxd4 {[%clk 0:01:53]} 26. Rxd4 {[%clk 0:01:10]}  Qe5 {[%clk 0:01:53]} 27. Rfd1 {[%clk 0:01:08]}  Rc1 {[%clk 0:01:49]} 28. Rxd5 {[%clk 0:00:53]}  Qxd5+ {[%clk 0:01:49]} 0-1


[Site "https://www.chess.com"]

[Event "Titled Tuesday Blitz February 22 Early 2022"]
[White "Narayanan, Srinath"]
[Black "Khumalo, Keith"]
[WhiteFideId "5018420"]
[BlackFideId "14319470"]
[WhiteElo "2472"]
[BlackElo "1992"]
[Result "1-0"]
[Round "06"]
[TimeControl "180+1"]
[Date "2022.02.22"]
[WhiteClock "0:01:43"]
[BlackClock "0:02:12"]

1. e4 {[%clk 0:03:00]}  c5 {[%clk 0:03:00]} 2. Nf3 {[%clk 0:03:01]}  d6 {[%clk 0:03:00]} 3. d4 {[%clk 0:03:00]}  cxd4 {[%clk 0:03:00]} 4. Nxd4 {[%clk 0:03:01]}  Nf6 {[%clk 0:03:01]} 5. Nc3 {[%clk 0:03:01]}  a6 {[%clk 0:03:02]} 6. h3 {[%clk 0:02:58]}  e6 {[%clk 0:03:01]} 7. g4 {[%clk 0:02:58]}  Be7 {[%clk 0:03:01]} 8. Bg2 {[%clk 0:02:58]}  Nfd7 {[%clk 0:03:02]} 9. Be3 {[%clk 0:02:57]}  b5 {[%clk 0:03:02]} 10. O-O {[%clk 0:02:48]}  Bb7 {[%clk 0:03:02]} 11. f4 {[%clk 0:02:48]}  Nb6 {[%clk 0:03:00]} 12. b3 {[%clk 0:02:48]}  Qc7 {[%clk 0:02:55]} 13. Qd2 {[%clk 0:02:46]}  Nc6 {[%clk 0:02:53]} 14. Nce2 {[%clk 0:02:41]}  O-O {[%clk 0:02:50]} 15. Ng3 {[%clk 0:02:37]}  Rfd8 {[%clk 0:02:45]} 16. c3 {[%clk 0:02:35]}  d5 {[%clk 0:02:45]} 17. e5 {[%clk 0:02:35]}  b4 {[%clk 0:02:44]} 18. Rac1 {[%clk 0:02:33]}  bxc3 {[%clk 0:02:44]} 19. Qxc3 {[%clk 0:02:34]}  Rac8 {[%clk 0:02:41]} 20. Qd2 {[%clk 0:01:49]}  Qd7 {[%clk 0:02:27]} 21. Nxc6 {[%clk 0:01:45]}  Rxc6 {[%clk 0:02:27]} 22. Rxc6 {[%clk 0:01:45]}  Qxc6 {[%clk 0:02:27]} 23. Rc1 {[%clk 0:01:46]}  Qb5 {[%clk 0:02:27]} 24. Bf1 {[%clk 0:01:46]}  d4 {[%clk 0:02:14]} 25. Bxb5 {[%clk 0:01:44]}  dxe3 {[%clk 0:02:15]} 26. Qxe3 {[%clk 0:01:45]}  Nd5 {[%clk 0:02:15]} 27. Qa7 {[%clk 0:01:45]}  axb5 {[%clk 0:02:12]} 28. Qxb7 {[%clk 0:01:44]}  Ba3 {[%clk 0:02:12]} 29. Rc8 {[%clk 0:01:43]} 1-0


[Site "https://www.chess.com"]

[Event "Titled Tuesday Blitz February 22 Early 2022"]
[White "Novikov, Evgenij"]
[Black "Leiva, Gianmarco"]
[WhiteFideId "4125380"]
[BlackFideId "3804399"]
[WhiteElo "2242"]
[BlackElo "2328"]
[Result "0-1"]
[Round "06"]
[TimeControl "180+1"]
[Date "2022.02.22"]
[WhiteClock "0:00:02"]
[BlackClock "0:00:40"]

1. d4 {[%clk 0:02:51]}  Nf6 {[%clk 0:02:59]} 2. Nf3 {[%clk 0:02:48]}  e6 {[%clk 0:02:59]} 3. g3 {[%clk 0:02:44]}  d5 {[%clk 0:02:56]} 4. c4 {[%clk 0:02:43]}  c6 {[%clk 0:02:55]} 5. Qc2 {[%clk 0:02:38]}  Bb4+ {[%clk 0:02:52]} 6. Bd2 {[%clk 0:02:28]}  Bd6 {[%clk 0:02:52]} 7. Bg2 {[%clk 0:02:26]}  O-O {[%clk 0:02:51]} 8. O-O {[%clk 0:02:26]}  Nbd7 {[%clk 0:02:48]} 9. b3 {[%clk 0:02:06]}  Ne4 {[%clk 0:02:46]} 10. Nc3 {[%clk 0:02:02]}  f5 {[%clk 0:02:46]} 11. Bf4 {[%clk 0:01:51]}  Bxf4 {[%clk 0:02:10]} 12. gxf4 {[%clk 0:01:51]}  Rf6 {[%clk 0:02:07]} 13. Ne5 {[%clk 0:01:37]}  Nxe5 {[%clk 0:02:05]} 14. dxe5 {[%clk 0:01:26]}  Rg6 {[%clk 0:02:05]} 15. Nxe4 {[%clk 0:01:11]}  fxe4 {[%clk 0:02:05]} 16. f3 {[%clk 0:01:02]}  e3 {[%clk 0:01:52]} 17. Qd3 {[%clk 0:00:48]}  d4 {[%clk 0:01:51]} 18. f5 {[%clk 0:00:25]}  exf5 {[%clk 0:01:51]} 19. f4 {[%clk 0:00:25]}  Be6 {[%clk 0:01:44]} 20. Rf3 {[%clk 0:00:25]}  c5 {[%clk 0:01:31]} 21. Raf1 {[%clk 0:00:24]}  b5 {[%clk 0:01:24]} 22. Rg3 {[%clk 0:00:23]}  bxc4 {[%clk 0:01:23]} 23. bxc4 {[%clk 0:00:23]}  Rb8 {[%clk 0:01:23]} 24. Bd5 {[%clk 0:00:14]}  Bxd5 {[%clk 0:00:52]} 25. cxd5 {[%clk 0:00:14]}  Qxd5 {[%clk 0:00:52]} 26. Qxf5 {[%clk 0:00:15]}  Rf8 {[%clk 0:00:53]} 27. Qc2 {[%clk 0:00:10]}  c4 {[%clk 0:00:48]} 28. f5 {[%clk 0:00:07]}  Rxg3+ {[%clk 0:00:46]} 29. hxg3 {[%clk 0:00:08]}  Qxe5 {[%clk 0:00:46]} 30. Qxc4+ {[%clk 0:00:07]}  Kh8 {[%clk 0:00:47]} 31. Kh2 {[%clk 0:00:06]}  h5 {[%clk 0:00:44]} 32. Qd3 {[%clk 0:00:05]}  h4 {[%clk 0:00:43]} 33. Rf4 {[%clk 0:00:05]}  hxg3+ {[%clk 0:00:39]} 34. Kxg3 {[%clk 0:00:06]}  g5 {[%clk 0:00:40]} 35. Qxd4 {[%clk 0:00:02]}  gxf4+ {[%clk 0:00:40]} 36. Qxf4 {[%clk 0:00:03]}  Rxf5 {[%clk 0:00:39]} 37. Qxe5+ {[%clk 0:00:02]}  Rxe5 {[%clk 0:00:40]} 0-1


[Site "https://www.chess.com"]

[Event "Titled Tuesday Blitz February 22 Early 2022"]
[White "Nugumanov, Bakhtiyar"]
[Black "Steil-Antoni, Fiona"]
[WhiteFideId "13701797"]
[BlackFideId "4001249"]
[WhiteElo "2262"]
[BlackElo "2059"]
[Result "0-1"]
[Round "06"]
[TimeControl "180+1"]
[Date "2022.02.22"]
[WhiteClock "0:00:03"]
[BlackClock "0:00:12"]

1. Nf3 {[%clk 0:02:55]}  d6 {[%clk 0:02:59]} 2. d4 {[%clk 0:02:55]}  Bg4 {[%clk 0:02:58]} 3. g3 {[%clk 0:02:52]}  Bxf3 {[%clk 0:02:57]} 4. exf3 {[%clk 0:02:52]}  Nd7 {[%clk 0:02:57]} 5. f4 {[%clk 0:02:50]}  c6 {[%clk 0:02:57]} 6. Bg2 {[%clk 0:02:50]}  Ngf6 {[%clk 0:02:58]} 7. O-O {[%clk 0:02:51]}  g6 {[%clk 0:02:58]} 8. c4 {[%clk 0:02:51]}  Bg7 {[%clk 0:02:59]} 9. Nc3 {[%clk 0:02:51]}  O-O {[%clk 0:03:00]} 10. d5 {[%clk 0:02:51]}  Qc7 {[%clk 0:02:54]} 11. Re1 {[%clk 0:02:45]}  Rfe8 {[%clk 0:02:54]} 12. f5 {[%clk 0:02:44]}  Ne5 {[%clk 0:02:50]} 13. Qe2 {[%clk 0:02:19]}  gxf5 {[%clk 0:02:36]} 14. Bg5 {[%clk 0:02:09]}  e6 {[%clk 0:02:33]} 15. f4 {[%clk 0:01:59]}  Ng6 {[%clk 0:02:25]} 16. dxc6 {[%clk 0:01:52]}  bxc6 {[%clk 0:02:24]} 17. Rac1 {[%clk 0:01:43]}  h6 {[%clk 0:02:24]} 18. Bxf6 {[%clk 0:01:43]}  Bxf6 {[%clk 0:02:25]} 19. Qf3 {[%clk 0:01:36]}  Rab8 {[%clk 0:02:11]} 20. b3 {[%clk 0:01:19]}  Qa5 {[%clk 0:01:56]} 21. Na4 {[%clk 0:01:12]}  d5 {[%clk 0:01:47]} 22. Kh1 {[%clk 0:01:00]}  Kg7 {[%clk 0:01:45]} 23. Re2 {[%clk 0:00:41]}  Re7 {[%clk 0:01:44]} 24. Nc5 {[%clk 0:00:32]}  Qxc5 {[%clk 0:01:35]} 25. Rec2 {[%clk 0:00:26]}  Qd4 {[%clk 0:01:26]} 26. Rd1 {[%clk 0:00:22]}  Qb6 {[%clk 0:01:17]} 27. h4 {[%clk 0:00:10]}  Nf8 {[%clk 0:01:15]} 28. h5 {[%clk 0:00:06]}  Nd7 {[%clk 0:01:14]} 29. g4 {[%clk 0:00:04]}  fxg4 {[%clk 0:01:01]} 30. Qxg4+ {[%clk 0:00:04]}  Kh8 {[%clk 0:01:01]} 31. f5 {[%clk 0:00:02]}  Rg8 {[%clk 0:00:55]} 32. Qf4 {[%clk 0:00:02]}  Bg5 {[%clk 0:00:50]} 33. Qd6 {[%clk 0:00:03]}  Qc5 {[%clk 0:00:41]} 34. Qc7 {[%clk 0:00:02]}  Nf6 {[%clk 0:00:28]} 35. Qe5 {[%clk 0:00:02]}  exf5 {[%clk 0:00:18]} 36. Qxf5 {[%clk 0:00:03]}  Nxh5 {[%clk 0:00:15]} 37. cxd5 {[%clk 0:00:03]}  Ng3+ {[%clk 0:00:13]} 38. Kh2 {[%clk 0:00:03]}  Nxf5 {[%clk 0:00:14]} 39. Rxc5 {[%clk 0:00:03]}  Ne3 {[%clk 0:00:12]} 0-1


[Site "https://www.chess.com"]

[Event "Titled Tuesday Blitz February 22 Early 2022"]
[White "Nur-Mukhametova, Alisa"]
[Black "Maze, Sebastien"]
[WhiteFideId "54117739"]
[BlackFideId "613762"]
[WhiteElo "2015"]
[BlackElo "2462"]
[Result "0-1"]
[Round "06"]
[TimeControl "180+1"]
[Date "2022.02.22"]
[WhiteClock "0:00:35"]
[BlackClock "0:01:16"]

1. Nf3 {[%clk 0:03:00]}  Nf6 {[%clk 0:02:59]} 2. g3 {[%clk 0:03:00]}  g6 {[%clk 0:02:58]} 3. Bg2 {[%clk 0:03:01]}  Bg7 {[%clk 0:02:58]} 4. O-O {[%clk 0:03:01]}  O-O {[%clk 0:02:58]} 5. d4 {[%clk 0:03:02]}  d6 {[%clk 0:02:58]} 6. c4 {[%clk 0:03:02]}  c6 {[%clk 0:02:58]} 7. Nc3 {[%clk 0:03:02]}  Qa5 {[%clk 0:02:59]} 8. Qc2 {[%clk 0:02:58]}  Qh5 {[%clk 0:02:54]} 9. e4 {[%clk 0:02:51]}  Bh3 {[%clk 0:02:52]} 10. Bxh3 {[%clk 0:02:41]}  Qxh3 {[%clk 0:02:51]} 11. Ng5 {[%clk 0:02:41]}  Qh5 {[%clk 0:02:43]} 12. Qd1 {[%clk 0:02:38]}  Qxd1 {[%clk 0:02:26]} 13. Rxd1 {[%clk 0:02:38]}  Nbd7 {[%clk 0:02:25]} 14. f4 {[%clk 0:02:35]}  Ne8 {[%clk 0:02:13]} 15. Nf3 {[%clk 0:02:33]}  Nc7 {[%clk 0:02:13]} 16. Be3 {[%clk 0:02:26]}  d5 {[%clk 0:02:09]} 17. cxd5 {[%clk 0:02:15]}  cxd5 {[%clk 0:02:09]} 18. e5 {[%clk 0:02:10]}  e6 {[%clk 0:02:01]} 19. Rac1 {[%clk 0:02:09]}  Rfc8 {[%clk 0:02:00]} 20. Bd2 {[%clk 0:01:59]}  Bf8 {[%clk 0:01:59]} 21. a3 {[%clk 0:01:52]}  b5 {[%clk 0:01:59]} 22. Rc2 {[%clk 0:01:45]}  Nb6 {[%clk 0:01:55]} 23. Rdc1 {[%clk 0:01:23]}  Nc4 {[%clk 0:01:55]} 24. Nb1 {[%clk 0:01:22]}  Na6 {[%clk 0:01:44]} 25. Kg2 {[%clk 0:01:07]}  Rcb8 {[%clk 0:01:40]} 26. Ne1 {[%clk 0:00:46]}  b4 {[%clk 0:01:35]} 27. axb4 {[%clk 0:00:46]}  Nxb4 {[%clk 0:01:31]} 28. Bxb4 {[%clk 0:00:45]}  Ne3+ {[%clk 0:01:17]} 29. Kf2 {[%clk 0:00:40]}  Nxc2 {[%clk 0:01:17]} 30. Bxf8 {[%clk 0:00:37]}  Nxe1 {[%clk 0:01:17]} 31. Kxe1 {[%clk 0:00:37]}  Kxf8 {[%clk 0:01:17]} 32. Rc2 {[%clk 0:00:35]}  Rb4 {[%clk 0:01:16]} 0-1


[Site "https://www.chess.com"]